[Event "Titled Tuesday Blitz May 2 Late 2023"]
[White "Grischuk, Alexander"]
[Black "Pakleza, Zbigniew"]
[WhiteFideId "4126025"]
[BlackFideId "1119290"]
[WhiteElo "2727"]
[BlackElo "2410"]
[Result "1-0"]
[Round "09"]
[TimeControl "180+2"]
[Date "2023.05.02"]
[WhiteClock "0:01:06"]
[BlackClock "0:00:04"]

1. e4 {[%clk 0:03:00]}  d6 {[%clk 0:03:00]} 2. d4 {[%clk 0:03:00]}  Nf6 {[%clk 0:03:01]} 3. Bd3 {[%clk 0:03:00]}  e5 {[%clk 0:03:00]} 4. c3 {[%clk 0:03:00]}  d5 {[%clk 0:03:01]} 5. dxe5 {[%clk 0:02:56]}  dxe4 {[%clk 0:03:02]} 6. Bb5+ {[%clk 0:02:53]}  c6 {[%clk 0:03:02]} 7. Qxd8+ {[%clk 0:02:52]}  Kxd8 {[%clk 0:03:03]} 8. exf6 {[%clk 0:02:32]}  cxb5 {[%clk 0:03:04]} 9. fxg7 {[%clk 0:02:32]}  Bxg7 {[%clk 0:03:05]} 10. Bg5+ {[%clk 0:02:32]}  Kc7 {[%clk 0:02:51]} 11. Nd2 {[%clk 0:02:30]}  Bf5 {[%clk 0:02:41]} 12. Ne2 {[%clk 0:02:29]}  Re8 {[%clk 0:02:37]} 13. Nd4 {[%clk 0:02:21]}  Bxd4 {[%clk 0:02:31]} 14. cxd4 {[%clk 0:02:21]}  Nc6 {[%clk 0:02:31]} 15. Rc1 {[%clk 0:02:15]}  Kd7 {[%clk 0:02:26]} 16. Rc5 {[%clk 0:02:08]}  Bg6 {[%clk 0:02:03]} 17. Rxb5 {[%clk 0:02:08]}  b6 {[%clk 0:01:56]} 18. O-O {[%clk 0:02:07]}  Kc7 {[%clk 0:01:48]} 19. Rc1 {[%clk 0:01:54]}  Kb7 {[%clk 0:01:48]} 20. Rd5 {[%clk 0:01:53]}  Rac8 {[%clk 0:01:38]} 21. a3 {[%clk 0:01:32]}  Na5 {[%clk 0:01:15]} 22. Rxc8 {[%clk 0:01:30]}  Rxc8 {[%clk 0:01:16]} 23. h4 {[%clk 0:01:26]}  h5 {[%clk 0:00:53]} 24. Be3 {[%clk 0:01:18]}  Rc2 {[%clk 0:00:45]} 25. g4 {[%clk 0:01:14]}  hxg4 {[%clk 0:00:25]} 26. h5 {[%clk 0:01:15]}  Bh7 {[%clk 0:00:26]} 27. Rg5 {[%clk 0:01:15]}  Rc8 {[%clk 0:00:10]} 28. Rg7 {[%clk 0:01:14]}  Rh8 {[%clk 0:00:07]} 29. Rxf7+ {[%clk 0:01:12]}  Kc6 {[%clk 0:00:05]} 30. b4 {[%clk 0:01:09]}  Nb7 {[%clk 0:00:04]} 31. d5+ {[%clk 0:01:06]} 1-0


[Site "https://www.chess.com"]

[Event "Titled Tuesday Blitz May 2 Late 2023"]
[White "Ibarra Jerez, Jose Carlos"]
[Black "Halkias, Stelios"]
[WhiteFideId "2226332"]
[BlackFideId "4201809"]
[WhiteElo "2638"]
[BlackElo "2451"]
[Result "1-0"]
[Round "09"]
[TimeControl "180+2"]
[Date "2023.05.02"]
[WhiteClock "0:00:29"]
[BlackClock "0:00:15"]

1. e4 {[%clk 0:03:00]}  c5 {[%clk 0:02:56]} 2. Nf3 {[%clk 0:03:00]}  d6 {[%clk 0:02:56]} 3. c3 {[%clk 0:02:59]}  Nf6 {[%clk 0:02:55]} 4. h3 {[%clk 0:03:00]}  g6 {[%clk 0:02:55]} 5. Bd3 {[%clk 0:03:00]}  Bg7 {[%clk 0:02:55]} 6. Bc2 {[%clk 0:03:01]}  O-O {[%clk 0:02:55]} 7. d4 {[%clk 0:03:01]}  cxd4 {[%clk 0:02:52]} 8. cxd4 {[%clk 0:03:02]}  d5 {[%clk 0:02:53]} 9. e5 {[%clk 0:03:02]}  Ne4 {[%clk 0:02:53]} 10. O-O {[%clk 0:03:03]}  Nc6 {[%clk 0:02:53]} 11. Nc3 {[%clk 0:03:03]}  Bf5 {[%clk 0:02:53]} 12. Bb3 {[%clk 0:02:45]}  Nxc3 {[%clk 0:02:41]} 13. bxc3 {[%clk 0:02:44]}  Na5 {[%clk 0:02:40]} 14. g4 {[%clk 0:02:40]}  Be4 {[%clk 0:02:36]} 15. Ng5 {[%clk 0:02:37]}  h6 {[%clk 0:02:29]} 16. Nxe4 {[%clk 0:02:37]}  dxe4 {[%clk 0:02:29]} 17. Bc2 {[%clk 0:02:32]}  Rc8 {[%clk 0:02:26]} 18. Bxe4 {[%clk 0:02:30]}  Rxc3 {[%clk 0:02:24]} 19. Kg2 {[%clk 0:02:00]}  Rc4 {[%clk 0:02:16]} 20. Be3 {[%clk 0:01:56]}  Nc6 {[%clk 0:02:14]} 21. Rc1 {[%clk 0:01:51]}  Rb4 {[%clk 0:01:40]} 22. a3 {[%clk 0:01:46]}  Rb2 {[%clk 0:01:33]} 23. Rb1 {[%clk 0:01:38]}  Rxb1 {[%clk 0:01:13]} 24. Qxb1 {[%clk 0:01:38]}  Qd7 {[%clk 0:01:13]} 25. Rd1 {[%clk 0:01:34]}  Rd8 {[%clk 0:01:10]} 26. f4 {[%clk 0:01:27]}  e6 {[%clk 0:01:11]} 27. d5 {[%clk 0:01:21]}  Ne7 {[%clk 0:00:50]} 28. d6 {[%clk 0:01:17]}  Nd5 {[%clk 0:00:49]} 29. Bxd5 {[%clk 0:01:12]}  exd5 {[%clk 0:00:50]} 30. Rxd5 {[%clk 0:01:12]}  h5 {[%clk 0:00:49]} 31. Kf3 {[%clk 0:01:06]}  Qc6 {[%clk 0:00:46]} 32. Qe4 {[%clk 0:01:06]}  f5 {[%clk 0:00:23]} 33. gxf5 {[%clk 0:00:37]}  gxf5 {[%clk 0:00:22]} 34. Qd3 {[%clk 0:00:37]}  Qd7 {[%clk 0:00:19]} 35. Rc5 {[%clk 0:00:32]}  Qe6 {[%clk 0:00:15]} 36. Qc4 {[%clk 0:00:29]}  Qxc4 {[%clk 0:00:14]} 37. Rxc4 {[%clk 0:00:30]}  Kf7 {[%clk 0:00:15]} 38. Rc7+ {[%clk 0:00:30]}  Kg6 {[%clk 0:00:15]} 39. Rxb7 {[%clk 0:00:29]} 1-0


[Site "https://www.chess.com"]

[Event "Titled Tuesday Blitz May 2 Late 2023"]
[White "Nazari, Arad"]
[Black "Yoo, Christopher Woojin"]
[WhiteFideId "12577324"]
[BlackFideId "30909694"]
[WhiteElo "2242"]
[BlackElo "2519"]
[Result "1-0"]
[Round "09"]
[TimeControl "180+2"]
[Date "2023.05.02"]
[WhiteClock "0:00:05"]
[BlackClock "0:00:02"]

1. e4 {[%clk 0:02:53]}  c5 {[%clk 0:02:58]} 2. Nf3 {[%clk 0:02:53]}  e6 {[%clk 0:02:55]} 3. d4 {[%clk 0:02:52]}  cxd4 {[%clk 0:02:56]} 4. Nxd4 {[%clk 0:02:53]}  Nc6 {[%clk 0:02:56]} 5. Nc3 {[%clk 0:02:52]}  Qc7 {[%clk 0:02:57]} 6. Be3 {[%clk 0:02:50]}  a6 {[%clk 0:02:53]} 7. Qf3 {[%clk 0:02:50]}  Ne5 {[%clk 0:02:52]} 8. Qg3 {[%clk 0:02:41]}  h5 {[%clk 0:02:53]} 9. Nf5 {[%clk 0:02:25]}  f6 {[%clk 0:02:43]} 10. O-O-O {[%clk 0:01:50]}  exf5 {[%clk 0:02:38]} 11. Nd5 {[%clk 0:01:50]}  Qc6 {[%clk 0:02:39]} 12. Bb6 {[%clk 0:01:48]}  fxe4 {[%clk 0:02:36]} 13. Nc7+ {[%clk 0:01:34]}  Kf7 {[%clk 0:02:35]} 14. Nxa8 {[%clk 0:01:35]}  d5 {[%clk 0:02:33]} 15. Bd4 {[%clk 0:01:24]}  Bd6 {[%clk 0:02:26]} 16. Qb3 {[%clk 0:01:20]}  Ne7 {[%clk 0:02:23]} 17. Nb6 {[%clk 0:01:18]}  Be6 {[%clk 0:02:21]} 18. Qc3 {[%clk 0:00:57]}  Nf5 {[%clk 0:02:14]} 19. Bxe5 {[%clk 0:00:44]}  Bxe5 {[%clk 0:01:52]} 20. Qxc6 {[%clk 0:00:43]}  bxc6 {[%clk 0:01:53]} 21. Bxa6 {[%clk 0:00:31]}  Bd4 {[%clk 0:01:46]} 22. Rxd4 {[%clk 0:00:24]}  Nxd4 {[%clk 0:01:45]} 23. c3 {[%clk 0:00:25]}  Nf5 {[%clk 0:01:41]} 24. a4 {[%clk 0:00:25]}  Nd6 {[%clk 0:01:13]} 25. b4 {[%clk 0:00:24]}  Nc8 {[%clk 0:00:48]} 26. Bxc8 {[%clk 0:00:15]}  Bxc8 {[%clk 0:00:49]} 27. Kd2 {[%clk 0:00:13]}  Ke6 {[%clk 0:00:42]} 28. Ra1 {[%clk 0:00:04]}  Ba6 {[%clk 0:00:39]} 29. Ke3 {[%clk 0:00:04]}  Rb8 {[%clk 0:00:16]} 30. a5 {[%clk 0:00:04]}  f5 {[%clk 0:00:15]} 31. Kd4 {[%clk 0:00:05]}  f4 {[%clk 0:00:12]} 32. Kc5 {[%clk 0:00:04]}  e3 {[%clk 0:00:09]} 33. fxe3 {[%clk 0:00:04]}  fxe3 {[%clk 0:00:10]} 34. Re1 {[%clk 0:00:04]}  e2 {[%clk 0:00:10]} 35. Kxc6 {[%clk 0:00:05]}  Ke5 {[%clk 0:00:06]} 36. b5 {[%clk 0:00:05]}  Bb7+ {[%clk 0:00:02]} 37. Kc7 {[%clk 0:00:05]} 1-0


[Site "https://www.chess.com"]

[Event "Titled Tuesday Blitz May 2 Late 2023"]
[White "Mekhitarian, Krikor Sevag"]
[Black "Kucuksari, Kaan"]
[WhiteFideId "2107660"]
[BlackFideId "6380166"]
[WhiteElo "2604"]
[BlackElo "2364"]
[Result "1-0"]
[Round "09"]
[TimeControl "180+2"]
[Date "2023.05.02"]
[WhiteClock "0:00:15"]
[BlackClock "0:00:03"]

1. Nf3 {[%clk 0:03:00]}  Nf6 {[%clk 0:02:58]} 2. c4 {[%clk 0:03:00]}  b6 {[%clk 0:02:56]} 3. g3 {[%clk 0:02:56]}  Bb7 {[%clk 0:02:57]} 4. Bg2 {[%clk 0:02:56]}  e6 {[%clk 0:02:57]} 5. O-O {[%clk 0:02:55]}  Be7 {[%clk 0:02:58]} 6. Nc3 {[%clk 0:02:54]}  O-O {[%clk 0:02:59]} 7. Re1 {[%clk 0:02:52]}  d5 {[%clk 0:02:58]} 8. cxd5 {[%clk 0:02:52]}  exd5 {[%clk 0:02:59]} 9. d4 {[%clk 0:02:52]}  Nbd7 {[%clk 0:03:00]} 10. Bf4 {[%clk 0:02:52]}  c5 {[%clk 0:03:01]} 11. Rc1 {[%clk 0:02:51]}  Ne4 {[%clk 0:03:01]} 12. dxc5 {[%clk 0:02:50]}  Nxc3 {[%clk 0:02:57]} 13. Rxc3 {[%clk 0:02:49]}  bxc5 {[%clk 0:02:56]} 14. h4 {[%clk 0:02:12]}  Re8 {[%clk 0:02:53]} 15. Rc1 {[%clk 0:01:31]}  Nb6 {[%clk 0:02:50]} 16. Ne5 {[%clk 0:01:29]}  Bf6 {[%clk 0:02:50]} 17. Nd3 {[%clk 0:01:15]}  c4 {[%clk 0:02:50]} 18. Nc5 {[%clk 0:01:16]}  Bc6 {[%clk 0:02:50]} 19. b3 {[%clk 0:01:14]}  Bb2 {[%clk 0:02:37]} 20. Rc2 {[%clk 0:01:11]}  Ba3 {[%clk 0:02:37]} 21. Na6 {[%clk 0:01:07]}  Rc8 {[%clk 0:02:31]} 22. bxc4 {[%clk 0:00:34]}  Nxc4 {[%clk 0:02:15]} 23. Nc7 {[%clk 0:00:33]}  Rxc7 {[%clk 0:01:17]} 24. Bxc7 {[%clk 0:00:34]}  Qxc7 {[%clk 0:01:18]} 25. Bxd5 {[%clk 0:00:34]}  Bc5 {[%clk 0:01:19]} 26. e3 {[%clk 0:00:24]}  Nxe3 {[%clk 0:01:10]} 27. Rxc5 {[%clk 0:00:22]}  Qb8 {[%clk 0:00:10]} 28. Bxc6 {[%clk 0:00:20]}  Rd8 {[%clk 0:00:10]} 29. Qe2 {[%clk 0:00:15]}  Qb4 {[%clk 0:00:03]} 30. Qxe3 {[%clk 0:00:15]} 1-0


[Site "https://www.chess.com"]

[Event "Titled Tuesday Blitz May 2 Late 2023"]
[White "Sieciechowicz, Marcin"]
[Black "Baskin, Robert"]
[WhiteFideId "1130170"]
[BlackFideId "24662402"]
[WhiteElo "2302"]
[BlackElo "2472"]
[Result "1-0"]
[Round "09"]
[TimeControl "180+2"]
[Date "2023.05.02"]
[WhiteClock "0:00:21"]
[BlackClock "0:00:03"]

1. d4 {[%clk 0:02:59]}  d5 {[%clk 0:02:58]} 2. Bf4 {[%clk 0:03:00]}  Nf6 {[%clk 0:02:57]} 3. e3 {[%clk 0:03:00]}  c5 {[%clk 0:02:57]} 4. c3 {[%clk 0:03:00]}  Nc6 {[%clk 0:02:53]} 5. Nd2 {[%clk 0:03:00]}  Bf5 {[%clk 0:02:51]} 6. Ngf3 {[%clk 0:03:00]}  e6 {[%clk 0:02:51]} 7. Nh4 {[%clk 0:02:57]}  Be4 {[%clk 0:02:50]} 8. Qb3 {[%clk 0:02:51]}  Qc8 {[%clk 0:02:33]} 9. f3 {[%clk 0:02:27]}  Bg6 {[%clk 0:02:33]} 10. g4 {[%clk 0:02:27]}  Be7 {[%clk 0:02:30]} 11. Be2 {[%clk 0:02:18]}  c4 {[%clk 0:02:13]} 12. Qa4 {[%clk 0:02:10]}  a6 {[%clk 0:02:09]} 13. Nxg6 {[%clk 0:01:56]}  hxg6 {[%clk 0:02:08]} 14. Kf2 {[%clk 0:01:56]}  b5 {[%clk 0:02:08]} 15. Qc2 {[%clk 0:01:56]}  Nd7 {[%clk 0:01:53]} 16. e4 {[%clk 0:01:47]}  dxe4 {[%clk 0:01:20]} 17. Nxe4 {[%clk 0:01:48]}  e5 {[%clk 0:01:09]} 18. dxe5 {[%clk 0:01:44]}  Ndxe5 {[%clk 0:01:09]} 19. Kg2 {[%clk 0:01:38]}  g5 {[%clk 0:00:28]} 20. Bg3 {[%clk 0:01:19]}  Ng6 {[%clk 0:00:26]} 21. Rad1 {[%clk 0:01:15]}  Nce5 {[%clk 0:00:24]} 22. Nd6+ {[%clk 0:01:09]}  Bxd6 {[%clk 0:00:24]} 23. Rxd6 {[%clk 0:01:10]}  f6 {[%clk 0:00:13]} 24. Qe4 {[%clk 0:01:00]}  O-O {[%clk 0:00:05]} 25. h4 {[%clk 0:00:52]}  gxh4 {[%clk 0:00:05]} 26. Bxh4 {[%clk 0:00:50]}  Qe8 {[%clk 0:00:04]} 27. Bg3 {[%clk 0:00:42]}  Nxg4 {[%clk 0:00:03]} 28. Re6 {[%clk 0:00:21]} 1-0


[Site "https://www.chess.com"]

[Event "Titled Tuesday Blitz May 2 Late 2023"]
[White "Tanenbaum, Zachary"]
[Black "Novik, Maxim"]
[WhiteFideId "2060850"]
[BlackFideId "4102924"]
[WhiteElo "2175"]
[BlackElo "2287"]
[Result "1-0"]
[Round "09"]
[TimeControl "180+2"]
[Date "2023.05.02"]
[WhiteClock "0:00:34"]
[BlackClock "0:00:39"]

1. e4 {[%clk 0:03:00]}  c6 {[%clk 0:02:59]} 2. d4 {[%clk 0:03:00]}  d5 {[%clk 0:03:00]} 3. exd5 {[%clk 0:03:01]}  cxd5 {[%clk 0:03:00]} 4. Bd3 {[%clk 0:03:02]}  Nf6 {[%clk 0:02:59]} 5. c3 {[%clk 0:03:02]}  Nc6 {[%clk 0:02:59]} 6. Bf4 {[%clk 0:03:02]}  Bg4 {[%clk 0:02:58]} 7. Qb3 {[%clk 0:03:02]}  Qd7 {[%clk 0:02:58]} 8. Nd2 {[%clk 0:03:02]}  e6 {[%clk 0:02:58]} 9. Ngf3 {[%clk 0:03:02]}  Bd6 {[%clk 0:02:58]} 10. Bxd6 {[%clk 0:03:02]}  Qxd6 {[%clk 0:02:59]} 11. O-O {[%clk 0:03:02]}  O-O {[%clk 0:02:58]} 12. Rfe1 {[%clk 0:03:03]}  Bxf3 {[%clk 0:02:58]} 13. Nxf3 {[%clk 0:03:02]}  Rae8 {[%clk 0:02:52]} 14. Ne5 {[%clk 0:03:01]}  Re7 {[%clk 0:02:52]} 15. f4 {[%clk 0:03:00]}  Qc7 {[%clk 0:02:42]} 16. a4 {[%clk 0:02:47]}  g6 {[%clk 0:02:42]} 17. Qc2 {[%clk 0:02:46]}  Ne8 {[%clk 0:02:38]} 18. Qf2 {[%clk 0:02:31]}  Nd6 {[%clk 0:02:38]} 19. Qh4 {[%clk 0:02:24]}  f5 {[%clk 0:02:36]} 20. Re3 {[%clk 0:02:19]}  Nxe5 {[%clk 0:02:27]} 21. fxe5 {[%clk 0:02:18]}  Ne4 {[%clk 0:02:24]} 22. Rf1 {[%clk 0:02:15]}  Rg7 {[%clk 0:02:22]} 23. Qh6 {[%clk 0:01:50]}  Qa5 {[%clk 0:02:06]} 24. Bc2 {[%clk 0:01:36]}  Nd2 {[%clk 0:02:06]} 25. Rf4 {[%clk 0:01:28]}  Nc4 {[%clk 0:02:01]} 26. b4 {[%clk 0:01:24]}  Qd8 {[%clk 0:01:48]} 27. Rg3 {[%clk 0:01:23]}  a5 {[%clk 0:01:41]} 28. h4 {[%clk 0:01:19]}  axb4 {[%clk 0:01:40]} 29. h5 {[%clk 0:01:15]}  Kf7 {[%clk 0:01:17]} 30. hxg6+ {[%clk 0:00:58]}  hxg6 {[%clk 0:01:17]} 31. Bxf5 {[%clk 0:00:57]}  exf5 {[%clk 0:01:14]} 32. e6+ {[%clk 0:00:51]}  Kg8 {[%clk 0:01:07]} 33. Rxg6 {[%clk 0:00:35]}  Qe7 {[%clk 0:01:06]} 34. Rh4 {[%clk 0:00:34]}  Rxg6 {[%clk 0:00:39]} 35. Qh8# {[%clk 0:00:34]} 1-0


[Site "https://www.chess.com"]

[Event "Titled Tuesday Blitz May 2 Late 2023"]
[White "Marek, Matyas"]
[Black "Mgeladze, Tamaz"]
[WhiteFideId "335398"]
[BlackFideId "13601202"]
[WhiteElo "2279"]
[BlackElo "2288"]
[Result "0-1"]
[Round "09"]
[TimeControl "180+2"]
[Date "2023.05.02"]
[WhiteClock "0:00:19"]
[BlackClock "0:00:56"]

1. Nf3 {[%clk 0:03:00]}  Nf6 {[%clk 0:02:59]} 2. g3 {[%clk 0:03:01]}  g6 {[%clk 0:03:00]} 3. Bg2 {[%clk 0:03:02]}  Bg7 {[%clk 0:03:01]} 4. O-O {[%clk 0:03:03]}  c5 {[%clk 0:03:01]} 5. d3 {[%clk 0:03:04]}  O-O {[%clk 0:03:01]} 6. e4 {[%clk 0:03:04]}  Nc6 {[%clk 0:03:01]} 7. Re1 {[%clk 0:03:05]}  d6 {[%clk 0:03:02]} 8. c3 {[%clk 0:03:05]}  Rb8 {[%clk 0:03:02]} 9. d4 {[%clk 0:03:05]}  cxd4 {[%clk 0:03:03]} 10. cxd4 {[%clk 0:03:05]}  Bg4 {[%clk 0:03:04]} 11. h3 {[%clk 0:03:01]}  Bxf3 {[%clk 0:03:03]} 12. Bxf3 {[%clk 0:03:02]}  e5 {[%clk 0:03:03]} 13. d5 {[%clk 0:03:01]}  Nd4 {[%clk 0:03:03]} 14. Bg2 {[%clk 0:03:01]}  Rc8 {[%clk 0:03:00]} 15. Nc3 {[%clk 0:03:01]}  b5 {[%clk 0:02:59]} 16. Be3 {[%clk 0:02:55]}  Qb6 {[%clk 0:02:36]} 17. Qd3 {[%clk 0:02:48]}  b4 {[%clk 0:02:34]} 18. Ne2 {[%clk 0:02:39]}  Nd7 {[%clk 0:02:29]} 19. Rac1 {[%clk 0:02:13]}  Rc5 {[%clk 0:02:29]} 20. Nxd4 {[%clk 0:02:07]}  exd4 {[%clk 0:02:29]} 21. Bd2 {[%clk 0:02:02]}  Ne5 {[%clk 0:02:25]} 22. Qb3 {[%clk 0:02:00]}  a5 {[%clk 0:02:21]} 23. f4 {[%clk 0:01:55]}  Nd7 {[%clk 0:02:05]} 24. Kh2 {[%clk 0:01:54]}  Re8 {[%clk 0:01:51]} 25. Qa4 {[%clk 0:01:39]}  Re7 {[%clk 0:01:45]} 26. a3 {[%clk 0:01:16]}  d3 {[%clk 0:01:35]} 27. axb4 {[%clk 0:01:13]}  axb4 {[%clk 0:01:32]} 28. Be3 {[%clk 0:00:47]}  Rxc1 {[%clk 0:01:32]} 29. Bxc1 {[%clk 0:00:33]}  Qf2 {[%clk 0:01:20]} 30. Rd1 {[%clk 0:00:32]}  Qc2 {[%clk 0:00:56]} 31. Qxc2 {[%clk 0:00:21]}  dxc2 {[%clk 0:00:57]} 32. Rd4 {[%clk 0:00:19]}  Bxd4 {[%clk 0:00:56]} 0-1


[Site "https://www.chess.com"]

[Event "Titled Tuesday Blitz May 2 Late 2023"]
[White "Bryant, John Daniel"]
[Black "Janaszak, Dawid"]
[WhiteFideId "2031280"]
[BlackFideId "1119206"]
[WhiteElo "2455"]
[BlackElo "2220"]
[Result "1-0"]
[Round "09"]
[TimeControl "180+2"]
[Date "2023.05.02"]
[WhiteClock "0:00:29"]
[BlackClock "0:00:35"]

1. e4 {[%clk 0:02:52]}  c5 {[%clk 0:02:56]} 2. c3 {[%clk 0:02:52]}  e5 {[%clk 0:02:51]} 3. Nf3 {[%clk 0:02:51]}  Nc6 {[%clk 0:02:50]} 4. Bc4 {[%clk 0:02:51]}  Nf6 {[%clk 0:02:51]} 5. Ng5 {[%clk 0:02:45]}  d5 {[%clk 0:02:51]} 6. exd5 {[%clk 0:02:46]}  Na5 {[%clk 0:02:51]} 7. Bb5+ {[%clk 0:02:35]}  Bd7 {[%clk 0:02:51]} 8. Qa4 {[%clk 0:02:34]}  Bd6 {[%clk 0:02:31]} 9. Bxd7+ {[%clk 0:02:05]}  Nxd7 {[%clk 0:02:30]} 10. Ne4 {[%clk 0:02:04]}  Bc7 {[%clk 0:02:11]} 11. Nxc5 {[%clk 0:01:54]}  b6 {[%clk 0:01:30]} 12. Nxd7 {[%clk 0:01:49]}  Qxd7 {[%clk 0:01:31]} 13. Qxd7+ {[%clk 0:01:46]}  Kxd7 {[%clk 0:01:31]} 14. d3 {[%clk 0:01:41]}  Nb7 {[%clk 0:01:31]} 15. Be3 {[%clk 0:01:34]}  f5 {[%clk 0:01:30]} 16. f3 {[%clk 0:01:34]}  Rae8 {[%clk 0:01:29]} 17. Nd2 {[%clk 0:01:28]}  g5 {[%clk 0:01:28]} 18. O-O-O {[%clk 0:01:07]}  Rhg8 {[%clk 0:01:29]} 19. h3 {[%clk 0:01:04]}  h5 {[%clk 0:01:28]} 20. c4 {[%clk 0:01:00]}  Bd6 {[%clk 0:01:25]} 21. Kc2 {[%clk 0:00:55]}  Re7 {[%clk 0:01:22]} 22. a3 {[%clk 0:00:47]}  g4 {[%clk 0:01:20]} 23. hxg4 {[%clk 0:00:46]}  hxg4 {[%clk 0:01:20]} 24. b4 {[%clk 0:00:42]}  a5 {[%clk 0:01:05]} 25. Kb3 {[%clk 0:00:40]}  Kc7 {[%clk 0:00:53]} 26. Rh6 {[%clk 0:00:38]}  gxf3 {[%clk 0:00:50]} 27. gxf3 {[%clk 0:00:36]}  Rg2 {[%clk 0:00:45]} 28. c5 {[%clk 0:00:33]}  bxc5 {[%clk 0:00:43]} 29. bxc5 {[%clk 0:00:33]}  f4 {[%clk 0:00:35]} 30. cxd6+ {[%clk 0:00:30]}  Nxd6 {[%clk 0:00:35]} 31. Bc5 {[%clk 0:00:29]} 1-0


[Site "https://www.chess.com"]

[Event "Titled Tuesday Blitz May 2 Late 2023"]
[White "Papasimakopoulos, Alexandros"]
[Black "Vlassov, Nikolai"]
[WhiteFideId "4244125"]
[BlackFideId "4103360"]
[WhiteElo "2359"]
[BlackElo "2324"]
[Result "1-0"]
[Round "09"]
[TimeControl "180+2"]
[Date "2023.05.02"]
[WhiteClock "0:01:49"]
[BlackClock "0:00:59"]

1. d4 {[%clk 0:03:00]}  Nf6 {[%clk 0:02:59]} 2. Nf3 {[%clk 0:02:57]}  e6 {[%clk 0:02:59]} 3. Bg5 {[%clk 0:02:56]}  h6 {[%clk 0:02:58]} 4. Bh4 {[%clk 0:02:56]}  c5 {[%clk 0:02:58]} 5. e3 {[%clk 0:02:56]}  b6 {[%clk 0:02:58]} 6. Bd3 {[%clk 0:02:56]}  Bb7 {[%clk 0:02:58]} 7. Nbd2 {[%clk 0:02:55]}  g5 {[%clk 0:02:56]} 8. Bg3 {[%clk 0:02:55]}  g4 {[%clk 0:02:57]} 9. Nh4 {[%clk 0:02:55]}  Be7 {[%clk 0:02:54]} 10. h3 {[%clk 0:02:55]}  h5 {[%clk 0:02:49]} 11. c4 {[%clk 0:02:40]}  cxd4 {[%clk 0:02:46]} 12. exd4 {[%clk 0:02:39]}  d5 {[%clk 0:02:44]} 13. O-O {[%clk 0:02:31]}  dxc4 {[%clk 0:02:35]} 14. Nxc4 {[%clk 0:02:31]}  Nd5 {[%clk 0:02:31]} 15. Ng6 {[%clk 0:02:29]}  fxg6 {[%clk 0:02:31]} 16. Bxg6+ {[%clk 0:02:30]}  Kf8 {[%clk 0:02:28]} 17. hxg4 {[%clk 0:02:23]}  h4 {[%clk 0:02:12]} 18. Be5 {[%clk 0:02:19]}  Bf6 {[%clk 0:02:10]} 19. Qf3 {[%clk 0:02:13]}  Kg7 {[%clk 0:02:09]} 20. g5 {[%clk 0:02:13]}  Kxg6 {[%clk 0:02:03]} 21. Bxf6 {[%clk 0:02:08]}  Nxf6 {[%clk 0:02:03]} 22. Ne5+ {[%clk 0:02:07]}  Kh7 {[%clk 0:01:30]} 23. Qxb7+ {[%clk 0:02:01]}  Nbd7 {[%clk 0:01:08]} 24. gxf6 {[%clk 0:01:59]}  Qxf6 {[%clk 0:01:04]} 25. Qxd7+ {[%clk 0:01:58]}  Kg8 {[%clk 0:01:05]} 26. Rac1 {[%clk 0:01:51]}  Rh7 {[%clk 0:01:03]} 27. Rc8+ {[%clk 0:01:49]}  Rxc8 {[%clk 0:01:00]} 28. Qxc8+ {[%clk 0:01:50]}  Kg7 {[%clk 0:00:59]} 29. Rc1 {[%clk 0:01:49]} 1-0


[Site "https://www.chess.com"]

[Event "Titled Tuesday Blitz May 2 Late 2023"]
[White "Haydon, David L"]
[Black "Averjanov, Alexey"]
[WhiteFideId "415405"]
[BlackFideId "14109867"]
[WhiteElo "2326"]
[BlackElo "2399"]
[Result "0-1"]
[Round "09"]
[TimeControl "180+2"]
[Date "2023.05.02"]
[WhiteClock "0:00:57"]
[BlackClock "0:00:16"]

1. e4 {[%clk 0:02:56]}  c6 {[%clk 0:03:00]} 2. d4 {[%clk 0:02:55]}  d5 {[%clk 0:03:01]} 3. Nd2 {[%clk 0:02:55]}  dxe4 {[%clk 0:03:01]} 4. Nxe4 {[%clk 0:02:55]}  Bf5 {[%clk 0:03:02]} 5. Ng3 {[%clk 0:02:55]}  Bg6 {[%clk 0:03:02]} 6. Nf3 {[%clk 0:02:55]}  Nd7 {[%clk 0:03:02]} 7. Bc4 {[%clk 0:02:55]}  e6 {[%clk 0:03:02]} 8. c3 {[%clk 0:02:54]}  Ngf6 {[%clk 0:03:02]} 9. a4 {[%clk 0:02:53]}  a5 {[%clk 0:03:01]} 10. Qe2 {[%clk 0:02:53]}  Be7 {[%clk 0:03:02]} 11. Ne5 {[%clk 0:02:52]}  Nxe5 {[%clk 0:02:58]} 12. dxe5 {[%clk 0:02:51]}  Nd5 {[%clk 0:02:59]} 13. f4 {[%clk 0:02:51]}  Qb6 {[%clk 0:02:57]} 14. h4 {[%clk 0:02:47]}  h6 {[%clk 0:02:55]} 15. h5 {[%clk 0:02:46]}  Bh7 {[%clk 0:02:56]} 16. Bd3 {[%clk 0:02:45]}  Bxd3 {[%clk 0:02:55]} 17. Qxd3 {[%clk 0:02:45]}  O-O-O {[%clk 0:02:52]} 18. Qe2 {[%clk 0:02:44]}  Rd7 {[%clk 0:02:47]} 19. Ne4 {[%clk 0:02:43]}  Rhd8 {[%clk 0:02:45]} 20. Rh3 {[%clk 0:02:33]}  f5 {[%clk 0:02:10]} 21. Nf2 {[%clk 0:02:28]}  Qb3 {[%clk 0:01:59]} 22. c4 {[%clk 0:02:22]}  Qb4+ {[%clk 0:01:11]} 23. Kf1 {[%clk 0:02:06]}  Nb6 {[%clk 0:01:08]} 24. b3 {[%clk 0:02:03]}  Bf8 {[%clk 0:00:58]} 25. Ba3 {[%clk 0:01:46]}  Qd2 {[%clk 0:00:58]} 26. Bxf8 {[%clk 0:01:45]}  Qxe2+ {[%clk 0:00:53]} 27. Kxe2 {[%clk 0:01:44]}  Rxf8 {[%clk 0:00:54]} 28. Rd3 {[%clk 0:01:43]}  g5 {[%clk 0:00:45]} 29. hxg6 {[%clk 0:01:37]}  Rg8 {[%clk 0:00:44]} 30. g4 {[%clk 0:01:35]}  Rxd3 {[%clk 0:00:42]} 31. Kxd3 {[%clk 0:01:30]}  fxg4 {[%clk 0:00:43]} 32. Nxg4 {[%clk 0:01:29]}  Rxg6 {[%clk 0:00:43]} 33. Ne3 {[%clk 0:01:28]}  Nd7 {[%clk 0:00:40]} 34. Kd4 {[%clk 0:01:26]}  Rg3 {[%clk 0:00:38]} 35. Rh1 {[%clk 0:01:25]}  Rf3 {[%clk 0:00:35]} 36. Ke4 {[%clk 0:01:23]}  Rf2 {[%clk 0:00:33]} 37. Ng4 {[%clk 0:01:20]}  Nc5+ {[%clk 0:00:31]} 38. Ke3 {[%clk 0:01:20]}  Rb2 {[%clk 0:00:28]} 39. Nxh6 {[%clk 0:01:16]}  Rxb3+ {[%clk 0:00:28]} 40. Ke2 {[%clk 0:01:14]}  Ra3 {[%clk 0:00:28]} 41. Rg1 {[%clk 0:01:10]}  Rxa4 {[%clk 0:00:27]} 42. Rg8+ {[%clk 0:01:11]}  Kc7 {[%clk 0:00:27]} 43. Rg7+ {[%clk 0:01:10]}  Kb6 {[%clk 0:00:27]} 44. Nf7 {[%clk 0:01:10]}  Rxc4 {[%clk 0:00:25]} 45. Ke3 {[%clk 0:01:10]}  a4 {[%clk 0:00:22]} 46. Nd6 {[%clk 0:01:10]}  Rc3+ {[%clk 0:00:22]} 47. Kd4 {[%clk 0:01:09]}  Rf3 {[%clk 0:00:20]} 48. Nc8+ {[%clk 0:01:05]}  Kb5 {[%clk 0:00:18]} 49. Nd6+ {[%clk 0:01:05]}  Kb4 {[%clk 0:00:17]} 50. Rg4 {[%clk 0:00:57]}  Rd3# {[%clk 0:00:16]} 0-1


[Site "https://www.chess.com"]